[Event "Mistrovství Čech mládeže 2023 - HD16"]
[Site "Harrachov, Czech Republic"]
[Date "2023.10.21"]
[Round "1.1"]
[White "Davídek, Zdeněk"]
[Black "Meca, Viktor"]
[Result "1-0"]
[TimeControl "90m + 30s"]
[WhiteElo "2110"]
[BlackElo "1559"]

1. e4 {[%clk 01:30:52]} {[%emt 00:00:06]} c5 {[%clk 01:30:48]} {[%emt
00:00:12]} 2. Nf3 {[%clk 01:31:16]} {[%emt 00:00:07]} d6 {[%clk 01:30:58]}
{[%emt 00:00:21]} 3. Bb5+ {[%clk 01:31:38]} {[%emt 00:00:08]} Bd7 {[%clk
01:31:01]} {[%emt 00:00:26]} 4. Bxd7+ {[%clk 01:31:50]} {[%emt 00:00:18]} Qxd7
{[%clk 01:31:20]} {[%emt 00:00:11]} 5. O-O {[%clk 01:32:07]} {[%emt 00:00:12]}
Nc6 {[%clk 01:29:35]} {[%emt 00:02:14]} 6. c3 {[%clk 01:32:08]} {[%emt
00:00:30]} Nf6 {[%clk 01:24:08]} {[%emt 00:05:58]} 7. d4 {[%clk 01:31:47]}
{[%emt 00:00:50]} Nxe4 {[%clk 01:14:19]} {[%emt 00:10:19]} 8. d5 {[%clk
01:32:08]} {[%emt 00:00:10]} Ne5 {[%clk 01:14:39]} {[%emt 00:00:10]} 9. Re1
{[%clk 01:32:17]} {[%emt 00:00:21]} Nf6 {[%clk 01:14:48]} {[%emt 00:00:20]} 10.
Nxe5 {[%clk 01:31:37]} {[%emt 00:01:10]} dxe5 {[%clk 01:15:09]} {[%emt
00:00:09]} 11. c4 {[%clk 01:17:44]} {[%emt 00:14:23]} e6 {[%clk 00:56:30]}
{[%emt 00:19:09]} 12. Rxe5 {[%clk 01:16:21]} {[%emt 00:01:53]} Bd6 {[%clk
00:56:33]} {[%emt 00:00:25]} 13. dxe6 {[%clk 01:15:22]} {[%emt 00:01:31]} fxe6
{[%clk 00:56:54]} {[%emt 00:00:09]} 14. Re1 {[%clk 01:15:47]} {[%emt 00:00:06]}
O-O {[%clk 00:55:52]} {[%emt 00:01:31]} 15. Nc3 {[%clk 01:09:16]} {[%emt
00:07:02]} a6 {[%clk 00:43:10]} {[%emt 00:13:12]} 16. Qe2 {[%clk 01:08:41]}
{[%emt 00:01:04]} Rae8 {[%clk 00:39:37]} {[%emt 00:04:32]} 17. Bg5 {[%clk
01:05:40]} {[%emt 00:04:02]} Qc7 {[%clk 00:24:39]} {[%emt 00:15:28]} 18. h3
{[%clk 01:04:25]} {[%emt 00:01:45]} b6 {[%clk 00:17:29]} {[%emt 00:07:40]} 19.
Rad1 {[%clk 01:04:10]} {[%emt 00:00:46]} Nd7 {[%clk 00:06:34]} {[%emt
00:11:25]} 20. Kh1 {[%clk 00:32:13]} {[%emt 00:32:27]} Nb8 {[%clk 00:04:51]}
{[%emt 00:02:13]} 21. Be3 {[%clk 00:19:18]} {[%emt 00:13:25]} Nc6 {[%clk
00:03:33]} {[%emt 00:01:45]} 22. Ne4 {[%clk 00:19:45]} {[%emt 00:00:05]} Bf4
{[%clk 00:02:08]} {[%emt 00:01:55]} 23. Qh5 {[%clk 00:17:46]} {[%emt 00:02:30]}
Bxe3 {[%clk 00:00:59]} {[%emt 00:01:39]} 24. Rxe3 {[%clk 00:18:11]} {[%emt
00:00:05]} Nd4 {[%clk 00:00:46]} {[%emt 00:00:43]} 25. Rg3 {[%clk 00:16:47]}
{[%emt 00:01:54]} Nf5 {[%clk 00:00:34]} {[%emt 00:00:43]} 26. Nf6+ {[%clk
00:17:01]} {[%emt 00:00:15]} Rxf6 {[%clk 00:00:48]} {[%emt 00:00:15]} 27. Qxe8+
{[%clk 00:17:26]} {[%emt 00:00:05]} Rf8 {[%clk 00:00:57]} {[%emt 00:00:21]} 28.
Qxe6+ {[%clk 00:17:52]} {[%emt 00:00:04]} Kh8 {[%clk 00:00:50]} {[%emt
00:00:37]} 29. Rf3 {[%clk 00:17:47]} {[%emt 00:00:35]} 1-0

[Event "Mistrovství Čech mládeže 2023 - HD16"]
[Site "Harrachov, Czech Republic"]
[Date "2023.10.21"]
[Round "1.2"]
[White "Bárta, David"]
[Black "Hozda, Max"]
[Result "0-1"]
[TimeControl "90m + 30s"]
[WhiteElo "1558"]
[BlackElo "2105"]

1. d4 {[%clk 01:30:57]} {[%emt 00:00:02]} d5 {[%clk 01:30:55]} {[%emt
00:00:06]} 2. Nf3 {[%clk 01:31:24]} {[%emt 00:00:03]} Nf6 {[%clk 01:31:19]}
{[%emt 00:00:06]} 3. c4 {[%clk 01:31:49]} {[%emt 00:00:04]} c6 {[%clk
01:31:46]} {[%emt 00:00:03]} 4. Nc3 {[%clk 01:32:13]} {[%emt 00:00:06]} e6
{[%clk 01:32:08]} {[%emt 00:00:08]} 5. Bg5 {[%clk 01:32:36]} {[%emt 00:00:07]}
Nbd7 {[%clk 01:30:47]} {[%emt 00:01:52]} 6. cxd5 {[%clk 01:32:54]} {[%emt
00:00:12]} exd5 {[%clk 01:30:23]} {[%emt 00:00:54]} 7. Qc2 {[%clk 01:32:21]}
{[%emt 00:01:02]} Be7 {[%clk 01:30:45]} {[%emt 00:00:08]} 8. e3 {[%clk
01:29:22]} {[%emt 00:03:28]} O-O {[%clk 01:31:09]} {[%emt 00:00:06]} 9. Bd3
{[%clk 01:28:14]} {[%emt 00:01:38]} Re8 {[%clk 01:29:29]} {[%emt 00:02:11]} 10.
O-O {[%clk 01:26:27]} {[%emt 00:02:17]} Ne4 {[%clk 01:27:10]} {[%emt 00:02:48]}
11. Bf4 {[%clk 01:20:51]} {[%emt 00:06:07]} f5 {[%clk 01:23:17]} {[%emt
00:04:22]} 12. Ne5 {[%clk 01:11:21]} {[%emt 00:10:00]} Bf6 {[%clk 00:46:59]}
{[%emt 00:36:49]} 13. Nxd7 {[%clk 01:02:59]} {[%emt 00:08:51]} Qxd7 {[%clk
00:47:03]} {[%emt 00:00:26]} 14. Rae1 {[%clk 00:50:40]} {[%emt 00:12:49]} g5
{[%clk 00:38:47]} {[%emt 00:08:47]} 15. Bg3 {[%clk 00:50:02]} {[%emt 00:01:07]}
Qg7 {[%clk 00:38:13]} {[%emt 00:01:04]} 16. f3 {[%clk 00:42:05]} {[%emt
00:08:27]} Nxg3 {[%clk 00:38:14]} {[%emt 00:00:29]} 17. hxg3 {[%clk 00:42:29]}
{[%emt 00:00:06]} f4 {[%clk 00:37:54]} {[%emt 00:00:50]} 18. gxf4 {[%clk
00:28:27]} {[%emt 00:14:31]} gxf4 {[%clk 00:37:54]} {[%emt 00:00:31]} 19. exf4
{[%clk 00:26:57]} {[%emt 00:02:00]} Bxd4+ {[%clk 00:37:24]} {[%emt 00:01:00]}
20. Kh2 {[%clk 00:26:57]} {[%emt 00:00:29]} Qh6+ {[%clk 00:34:01]} {[%emt
00:03:54]} 21. Kg3 {[%clk 00:27:22]} {[%emt 00:00:04]} Rf8 {[%clk 00:18:57]}
{[%emt 00:15:35]} 22. Qd2 {[%clk 00:20:23]} {[%emt 00:07:30]} Kh8 {[%clk
00:18:36]} {[%emt 00:00:51]} 23. Bf5 {[%clk 00:15:24]} {[%emt 00:05:29]} Qg7+
{[%clk 00:04:33]} {[%emt 00:14:33]} 24. Bg4 {[%clk 00:15:51]} {[%emt 00:00:02]}
Rg8 {[%clk 00:02:56]} {[%emt 00:02:07]} 25. f5 {[%clk 00:09:42]} {[%emt
00:06:39]} Bxf5 {[%clk 00:02:19]} {[%emt 00:01:07]} 26. Qf4 {[%clk 00:08:30]}
{[%emt 00:01:42]} Bxg4 {[%clk 00:01:55]} {[%emt 00:00:55]} 27. fxg4 {[%clk
00:08:58]} {[%emt 00:00:02]} Raf8 {[%clk 00:01:22]} {[%emt 00:01:02]} 28. Re7
{[%clk 00:06:02]} {[%emt 00:03:26]} Rxf4 {[%clk 00:01:28]} {[%emt 00:00:24]} 29.
Rxg7 {[%clk 00:06:25]} {[%emt 00:00:07]} Rxf1 {[%clk 00:01:35]} {[%emt
00:00:23]} 30. Rxb7 {[%clk 00:06:41]} {[%emt 00:00:14]} Be5+ {[%clk 00:01:15]}
{[%emt 00:00:50]} 31. Kh3 {[%clk 00:06:57]} {[%emt 00:00:15]} Rh1# {[%clk
00:01:38]} {[%emt 00:00:06]} 0-1

[Event "Mistrovství Čech mládeže 2023 - HD16"]
[Site "Harrachov, Czech Republic"]
[Date "2023.10.21"]
[Round "1.3"]
[White "Hrbek, Jáchym"]
[Black "Jun, Robert"]
[Result "1-0"]
[TimeControl "90m + 30s"]
[WhiteElo "1973"]
[BlackElo "1554"]

1. d4 {[%clk 01:27:56]} {[%emt 00:03:00]} d5 {[%clk 01:29:50]} {[%emt
00:01:10]} 2. Nf3 {[%clk 01:28:00]} {[%emt 00:00:27]} c5 {[%clk 01:29:23]}
{[%emt 00:00:57]} 3. e3 {[%clk 01:28:19]} {[%emt 00:00:10]} e6 {[%clk
01:29:37]} {[%emt 00:00:16]} 4. c3 {[%clk 01:27:30]} {[%emt 00:01:19]} Nc6
{[%clk 01:26:27]} {[%emt 00:03:40]} 5. Bd3 {[%clk 01:26:38]} {[%emt 00:01:21]}
Nf6 {[%clk 01:24:07]} {[%emt 00:02:51]} 6. Nbd2 {[%clk 01:26:10]} {[%emt
00:00:58]} c4 {[%clk 01:22:24]} {[%emt 00:02:14]} 7. Bc2 {[%clk 01:24:30]}
{[%emt 00:02:09]} Bd6 {[%clk 01:21:26]} {[%emt 00:01:29]} 8. e4 {[%clk
01:12:54]} {[%emt 00:12:05]} Bf4 {[%clk 01:16:56]} {[%emt 00:05:00]} 9. e5
{[%clk 01:11:56]} {[%emt 00:01:29]} Nd7 {[%clk 01:16:27]} {[%emt 00:01:00]} 10.
Nxc4 {[%clk 01:11:17]} {[%emt 00:01:08]} dxc4 {[%clk 01:15:59]} {[%emt
00:00:58]} 11. Bxf4 {[%clk 01:11:35]} {[%emt 00:00:11]} b5 {[%clk 01:15:47]}
{[%emt 00:00:43]} 12. Ng5 {[%clk 01:00:47]} {[%emt 00:11:18]} g6 {[%clk
01:14:24]} {[%emt 00:01:53]} 13. Qf3 {[%clk 00:56:17]} {[%emt 00:05:00]} Bb7
{[%clk 01:14:18]} {[%emt 00:00:38]} 14. Nxf7 {[%clk 00:55:41]} {[%emt
00:01:06]} Nxd4 {[%clk 01:13:14]} {[%emt 00:01:33]} 15. Nd6+ {[%clk 00:56:04]}
{[%emt 00:00:07]} Ke7 {[%clk 01:12:10]} {[%emt 00:01:34]} 16. Bg5+ {[%clk
00:56:26]} {[%emt 00:00:08]} Nf6 {[%clk 01:12:20]} {[%emt 00:00:19]} 17. Qxb7+
{[%clk 00:56:46]} {[%emt 00:00:10]} 1-0

[Event "Mistrovství Čech mládeže 2023 - HD16"]
[Site "Harrachov, Czech Republic"]
[Date "2023.10.21"]
[Round "1.4"]
[White "Dudarec, Elias"]
[Black "Novotný, Dominik"]
[Result "1/2-1/2"]
[TimeControl "90m + 30s"]
[WhiteElo "1535"]
[BlackElo "1929"]

1. e4 {[%clk 01:28:35]} {[%emt 00:02:24]} c6 {[%clk 01:30:51]} {[%emt
00:00:10]} 2. d4 {[%clk 01:28:23]} {[%emt 00:00:42]} d5 {[%clk 01:31:14]}
{[%emt 00:00:07]} 3. exd5 {[%emt 00:00:18]} cxd5 {[%emt 00:00:03]} 4. Bd3
{[%clk 01:28:22]} {[%emt 00:00:11]} Nc6 {[%clk 01:31:34]} {[%emt 00:00:10]} 5.
c3 {[%clk 01:28:45]} {[%emt 00:00:06]} Nf6 {[%clk 01:31:57]} {[%emt 00:00:06]}
6. h3 {[%clk 01:29:08]} {[%emt 00:00:07]} e5 {[%clk 01:30:50]} {[%emt
00:01:38]} 7. dxe5 {[%clk 01:27:55]} {[%emt 00:01:43]} Nxe5 {[%clk 01:31:10]}
{[%emt 00:00:09]} 8. Nf3 {[%clk 01:27:04]} {[%emt 00:01:22]} Nxd3+ {[%clk
01:30:08]} {[%emt 00:01:31]} 9. Qxd3 {[%clk 01:27:22]} {[%emt 00:00:11]} Be7
{[%clk 01:28:20]} {[%emt 00:02:19]} 10. O-O {[%clk 01:26:15]} {[%emt 00:01:35]}
O-O {[%clk 01:28:36]} {[%emt 00:00:15]} 11. Bf4 {[%clk 01:22:13]} {[%emt
00:04:31]} b6 {[%clk 01:24:41]} {[%emt 00:04:26]} 12. Nbd2 {[%clk 01:13:53]}
{[%emt 00:08:49]} Bb7 {[%clk 01:19:47]} {[%emt 00:05:26]} 13. Nd4 {[%clk
01:10:50]} {[%emt 00:03:32]} Ne4 {[%clk 01:10:03]} {[%emt 00:10:13]} 14. Nxe4
{[%clk 01:04:34]} {[%emt 00:06:47]} dxe4 {[%clk 01:10:24]} {[%emt 00:00:10]} 15.
Qg3 {[%clk 01:04:37]} {[%emt 00:00:27]} Bf6 {[%clk 01:05:33]} {[%emt 00:05:21]}
16. Rad1 {[%clk 01:02:29]} {[%emt 00:02:38]} Qd7 {[%clk 01:04:33]} {[%emt
00:01:30]} 17. Nc2 {[%clk 00:53:50]} {[%emt 00:09:10]} Qf5 {[%clk 00:55:38]}
{[%emt 00:09:24]} 18. Ne3 {[%clk 00:45:22]} {[%emt 00:08:59]} Qg6 {[%clk
00:53:38]} {[%emt 00:02:30]} 19. Ng4 {[%clk 00:45:16]} {[%emt 00:00:36]} Rad8
{[%clk 00:43:30]} {[%emt 00:10:37]} 20. Nxf6+ {[%clk 00:43:26]} {[%emt
00:02:19]} gxf6 {[%clk 00:42:48]} {[%emt 00:01:13]} 21. Rfe1 {[%clk 00:40:11]}
{[%emt 00:03:45]} Kh8 {[%clk 00:33:50]} {[%emt 00:09:28]} 22. Rd6 {[%clk
00:34:47]} {[%emt 00:05:53]} Rxd6 {[%clk 00:29:33]} {[%emt 00:04:48]} 23. Bxd6
{[%clk 00:35:09]} {[%emt 00:00:08]} Rg8 {[%clk 00:29:54]} {[%emt 00:00:08]} 24.
Re3 {[%clk 00:29:37]} {[%emt 00:06:02]} h5 {[%clk 00:14:22]} {[%emt 00:16:03]}
25. c4 {[%clk 00:25:39]} {[%emt 00:04:28]} Kh7 {[%clk 00:13:43]} {[%emt
00:01:08]} 26. Kh2 {[%clk 00:20:28]} {[%emt 00:05:41]} f5 {[%clk 00:07:41]}
{[%emt 00:06:33]} 27. Be5 {[%clk 00:09:05]} {[%emt 00:11:52]} Qxg3+ {[%clk
00:03:11]} {[%emt 00:05:00]} 28. Rxg3 {[%clk 00:09:12]} {[%emt 00:00:23]} Rxg3
{[%clk 00:03:05]} {[%emt 00:00:36]} 29. Kxg3 {[%clk 00:09:06]} {[%emt
00:00:36]} Kg6 {[%clk 00:02:28]} {[%emt 00:01:06]} 30. h4 {[%clk 00:07:34]}
{[%emt 00:02:02]} 1/2-1/2

[Event "Mistrovství Čech mládeže 2023 - HD16"]
[Site "Harrachov, Czech Republic"]
[Date "2023.10.21"]
[Round "1.5"]
[White "Tesař, Jakub"]
[Black "Barták, Josef"]
[Result "1/2-1/2"]
[TimeControl "90m + 30s"]
[WhiteElo "1893"]
[BlackElo "1476"]

1. d4 {[%clk 01:30:46]} {[%emt 00:00:14]} d5 {[%clk 01:30:55]} {[%emt
00:00:05]} 2. c4 {[%clk 01:31:09]} {[%emt 00:00:07]} c6 {[%clk 01:31:21]}
{[%emt 00:00:04]} 3. Nf3 {[%clk 01:31:33]} {[%emt 00:00:06]} Nf6 {[%clk
01:31:43]} {[%emt 00:00:07]} 4. Nc3 {[%clk 01:31:47]} {[%emt 00:00:15]} Bf5
{[%clk 01:29:11]} {[%emt 00:03:03]} 5. cxd5 {[%clk 01:29:20]} {[%emt 00:02:57]}
cxd5 {[%clk 01:22:20]} {[%emt 00:07:21]} 6. Qb3 {[%clk 01:29:30]} {[%emt
00:00:20]} Bc8 {[%clk 01:16:48]} {[%emt 00:06:04]} 7. Bf4 {[%clk 01:20:57]}
{[%emt 00:09:02]} e6 {[%clk 01:15:57]} {[%emt 00:01:21]} 8. Rc1 {[%clk
01:16:29]} {[%emt 00:04:58]} a6 {[%clk 01:11:58]} {[%emt 00:04:29]} 9. e3
{[%clk 01:13:49]} {[%emt 00:03:10]} Nc6 {[%clk 01:11:30]} {[%emt 00:00:59]} 10.
Bd3 {[%clk 01:12:27]} {[%emt 00:01:52]} Bd6 {[%clk 01:09:03]} {[%emt 00:02:57]}
11. O-O {[%clk 01:00:25]} {[%emt 00:12:31]} Bxf4 {[%clk 01:07:51]} {[%emt
00:01:42]} 12. exf4 {[%clk 01:00:53]} {[%emt 00:00:02]} O-O {[%clk 01:08:10]}
{[%emt 00:00:11]} 13. Na4 {[%clk 00:55:23]} {[%emt 00:06:00]} Qd6 {[%clk
01:04:03]} {[%emt 00:04:37]} 14. Nb6 {[%clk 00:53:06]} {[%emt 00:02:48]} Na5
{[%clk 00:56:30]} {[%emt 00:08:02]} 15. Nxc8 {[%clk 00:52:51]} {[%emt
00:00:45]} Rfxc8 {[%clk 00:54:09]} {[%emt 00:02:51]} 16. Rxc8+ {[%clk
00:47:26]} {[%emt 00:05:55]} Rxc8 {[%clk 00:54:26]} {[%emt 00:00:12]} 17. Qa4
{[%clk 00:47:38]} {[%emt 00:00:17]} Nc4 {[%clk 00:29:03]} {[%emt 00:25:54]} 18.
Qb3 {[%clk 00:41:08]} 1/2-1/2

[Event "Mistrovství Čech mládeže 2023 - HD16"]
[Site "Harrachov, Czech Republic"]
[Date "2023.10.21"]
[Round "1.6"]
[White "Kohm, Patrik"]
[Black "Veverka, Vladimír"]
[Result "0-1"]
[TimeControl "90m + 30s"]
[WhiteElo "1475"]
[BlackElo "1849"]

1. c4 {[%clk 01:30:56]} {[%emt 00:00:03]} Nf6 {[%clk 01:30:00]} {[%emt
00:01:01]} 2. d4 {[%clk 01:31:06]} {[%emt 00:00:19]} e6 {[%clk 01:30:20]}
{[%emt 00:00:10]} 3. Nc3 {[%clk 01:31:22]} {[%emt 00:00:13]} Bb4 {[%clk
01:30:42]} {[%emt 00:00:09]} 4. a3 {[%clk 01:30:46]} {[%emt 00:01:06]} Bxc3+
{[%clk 01:30:55]} {[%emt 00:00:18]} 5. bxc3 {[%clk 01:31:10]} {[%emt 00:00:06]}
b6 {[%clk 01:30:51]} {[%emt 00:00:34]} 6. Nf3 {[%clk 01:29:19]} {[%emt
00:02:20]} Bb7 {[%clk 01:30:39]} {[%emt 00:00:42]} 7. e3 {[%clk 01:27:33]}
{[%emt 00:02:16]} Ne4 {[%clk 01:29:51]} {[%emt 00:01:18]} 8. Qc2 {[%clk
01:26:46]} {[%emt 00:01:17]} f5 {[%clk 01:28:35]} {[%emt 00:01:47]} 9. h4
{[%clk 01:18:58]} {[%emt 00:08:17]} g5 {[%clk 01:24:09]} {[%emt 00:04:56]} 10.
hxg5 {[%clk 01:12:36]} {[%emt 00:06:51]} Nxg5 {[%clk 01:23:32]} {[%emt
00:01:08]} 11. Nxg5 {[%clk 01:12:45]} {[%emt 00:00:21]} Qxg5 {[%clk 01:23:52]}
{[%emt 00:00:10]} 12. f3 {[%clk 01:13:05]} {[%emt 00:00:10]} d6 {[%clk
01:22:04]} {[%emt 00:02:19]} 13. Qf2 {[%clk 01:08:25]} {[%emt 00:05:09]} Qf6
{[%clk 01:18:01]} {[%emt 00:04:28]} 14. Bd3 {[%clk 01:07:31]} {[%emt 00:01:29]}
Nd7 {[%clk 01:16:45]} {[%emt 00:01:47]} 15. a4 {[%clk 01:04:04]} {[%emt
00:03:58]} a5 {[%clk 01:14:44]} {[%emt 00:02:31]} 16. Bb2 {[%clk 01:02:48]}
{[%emt 00:01:45]} O-O-O {[%clk 01:13:15]} {[%emt 00:01:59]} 17. O-O-O {[%clk
00:54:18]} {[%emt 00:09:00]} Qg5 {[%clk 01:07:28]} {[%emt 00:06:16]} 18. Kb1
{[%clk 00:52:24]} {[%emt 00:02:25]} e5 {[%clk 01:06:23]} {[%emt 00:01:36]} 19.
e4 {[%clk 00:46:36]} {[%emt 00:06:17]} f4 {[%emt 00:11:32]} 20. Rh2 {[%emt
00:06:39]} Rdg8 {[%clk 00:52:28]} {[%emt 00:00:19]} 21. Ba3 {[%clk 00:38:50]}
{[%emt 00:05:09]} c5 {[%clk 00:45:02]} {[%emt 00:07:57]} 22. Rdh1 {[%clk
00:36:49]} {[%emt 00:02:30]} h5 {[%clk 00:39:59]} {[%emt 00:05:34]} 23. Qh4
{[%clk 00:25:02]} {[%emt 00:12:17]} Qxh4 {[%clk 00:39:29]} {[%emt 00:01:01]} 24.
Rxh4 {[%clk 00:25:24]} {[%emt 00:00:07]} Rxg2 {[%emt 00:02:59]} 25. Rxh5 {[%emt
00:00:39]} Rxh5 {[%emt 00:00:09]} 26. Rxh5 {[%clk 00:22:10]} {[%emt 00:01:31]}
Rg3 27. Be2 {[%emt 00:06:09]} Bc6 {[%emt 00:04:13]} 28. d5 {[%clk 00:18:20]}
{[%emt 00:00:09]} Bxa4 {[%clk 00:33:18]} {[%emt 00:01:56]} 29. Rh2 {[%clk
00:17:42]} {[%emt 00:01:07]} Rg1+ {[%clk 00:29:24]} {[%emt 00:04:24]} 30. Ka2
{[%clk 00:17:54]} {[%emt 00:00:18]} Bd1 {[%clk 00:28:40]} {[%emt 00:01:14]} 31.
Bxd1 {[%clk 00:17:11]} {[%emt 00:01:13]} Rxd1 {[%clk 00:28:28]} {[%emt
00:00:42]} 32. Kb3 {[%clk 00:17:21]} {[%emt 00:00:20]} Rg1 {[%clk 00:26:06]}
{[%emt 00:02:52]} 33. Ka4 {[%clk 00:16:37]} {[%emt 00:01:14]} Rg3 {[%clk
00:25:43]} {[%emt 00:00:53]} 34. Kb5 {[%clk 00:15:13]} {[%emt 00:01:54]} Kc7
{[%clk 00:24:58]} {[%emt 00:01:16]} 35. Rf2 {[%clk 00:15:09]} {[%emt 00:00:33]}
Nf6 {[%clk 00:25:04]} {[%emt 00:00:24]} 36. Ka6 {[%clk 00:15:06]} {[%emt
00:00:34]} Nh7 {[%clk 00:19:39]} {[%emt 00:05:54]} 37. Rb2 {[%clk 00:14:32]}
{[%emt 00:01:05]} Rxf3 {[%clk 00:19:36]} {[%emt 00:00:33]} 38. Rxb6 {[%clk
00:14:53]} {[%emt 00:00:10]} Ng5 {[%clk 00:17:53]} {[%emt 00:02:13]} 39. Rb7+
{[%clk 00:12:26]} {[%emt 00:02:57]} Kd8 {[%clk 00:18:11]} {[%emt 00:00:13]} 40.
Rg7 {[%clk 00:10:33]} {[%emt 00:02:22]} Nxe4 {[%clk 00:16:09]} {[%emt
00:02:33]} 41. Kb6 {[%clk 00:06:31]} {[%emt 00:04:32]} Rxc3 {[%clk 00:15:39]}
{[%emt 00:00:59]} 0-1

[Event "Mistrovství Čech mládeže 2023 - HD16"]
[Site "Harrachov, Czech Republic"]
[Date "2023.10.21"]
[Round "1.7"]
[White "Síleš, Jan"]
[Black "Fořt, Hugo"]
[Result "1-0"]
[TimeControl "90m + 30s"]
[WhiteElo "1839"]
[BlackElo "1462"]

1. d4 {[%clk 01:30:57]} {[%emt 00:00:02]} d5 {[%clk 01:30:58]} {[%emt
00:00:02]} 2. c4 {[%clk 01:31:21]} {[%emt 00:00:07]} c6 {[%clk 01:31:24]}
{[%emt 00:00:04]} 3. Nc3 {[%clk 01:31:33]} {[%emt 00:00:15]} dxc4 {[%clk
01:31:39]} {[%emt 00:00:16]} 4. e3 {[%clk 01:31:28]} {[%emt 00:00:36]} b5
{[%clk 01:31:46]} {[%emt 00:00:24]} 5. a4 {[%clk 01:31:09]} {[%emt 00:00:49]}
b4 {[%clk 01:31:57]} {[%emt 00:00:19]} 6. Ne4 {[%clk 01:31:26]} {[%emt
00:00:13]} Qd5 {[%clk 01:32:00]} {[%emt 00:00:25]} 7. Nd2 {[%clk 01:31:42]}
{[%emt 00:00:16]} Ba6 {[%clk 01:30:55]} {[%emt 00:01:34]} 8. Qc2 {[%clk
01:28:24]} {[%emt 00:03:49]} c3 {[%clk 01:25:49]} {[%emt 00:05:36]} 9. bxc3
{[%clk 01:27:23]} {[%emt 00:01:31]} Bxf1 {[%clk 01:24:38]} {[%emt 00:01:41]} 10.
e4 {[%clk 01:22:02]} {[%emt 00:05:51]} Qa5 {[%clk 01:16:34]} {[%emt 00:08:33]}
11. Kxf1 {[%clk 01:19:18]} {[%emt 00:03:15]} bxc3 {[%clk 01:08:56]} {[%emt
00:08:08]} 12. Nb3 {[%clk 01:19:09]} {[%emt 00:00:39]} Qc7 {[%clk 01:08:38]}
{[%emt 00:00:48]} 13. Ne2 {[%clk 01:17:40]} {[%emt 00:02:00]} Nf6 {[%clk
01:04:46]} {[%emt 00:04:21]} 14. Bf4 {[%clk 01:14:30]} {[%emt 00:03:40]} Qc8
{[%clk 01:00:40]} {[%emt 00:04:36]} 15. f3 {[%clk 01:13:02]} {[%emt 00:01:59]}
e6 {[%clk 00:59:31]} {[%emt 00:01:38]} 16. Qxc3 {[%clk 01:12:29]} {[%emt
00:01:03]} Be7 {[%clk 00:54:43]} {[%emt 00:05:17]} 17. Rc1 {[%clk 01:12:00]}
{[%emt 00:00:59]} O-O {[%clk 00:54:42]} {[%emt 00:00:30]} 18. Kf2 {[%clk
01:08:00]} {[%emt 00:04:31]} Qa6 {[%clk 00:51:55]} {[%emt 00:03:16]} 19. Qa5
{[%clk 01:07:40]} {[%emt 00:00:50]} Qb7 {[%clk 00:43:48]} {[%emt 00:08:36]} 20.
Nc5 {[%clk 01:05:57]} {[%emt 00:02:15]} Bxc5 {[%clk 00:43:42]} {[%emt
00:00:36]} 21. dxc5 {[%clk 01:02:57]} {[%emt 00:03:30]} Qa6 {[%clk 00:37:00]}
{[%emt 00:07:11]} 22. Qb4 {[%clk 01:02:09]} {[%emt 00:01:19]} Nbd7 {[%clk
00:36:23]} {[%emt 00:01:07]} 23. Bd6 {[%clk 00:51:53]} {[%emt 00:10:45]} Rfd8
{[%clk 00:33:55]} {[%emt 00:02:57]} 24. Rhd1 {[%clk 00:50:26]} {[%emt
00:01:58]} Qc8 {[%clk 00:23:32]} {[%emt 00:10:53]} 25. Rb1 {[%clk 00:45:07]}
{[%emt 00:05:50]} h6 {[%clk 00:20:05]} {[%emt 00:03:57]} 26. Nc3 {[%clk
00:43:13]} {[%emt 00:02:25]} Kh7 {[%clk 00:14:45]} {[%emt 00:05:49]} 27. Qb7
{[%clk 00:40:13]} {[%emt 00:03:30]} Qxb7 {[%clk 00:14:20]} {[%emt 00:00:55]} 28.
Rxb7 {[%clk 00:40:31]} {[%emt 00:00:12]} Kg8 {[%clk 00:13:39]} {[%emt
00:01:10]} 29. e5 {[%clk 00:34:13]} {[%emt 00:06:48]} Nd5 {[%clk 00:12:50]}
{[%emt 00:01:19]} 30. Nxd5 {[%clk 00:34:31]} {[%emt 00:00:12]} exd5 {[%clk
00:12:59]} {[%emt 00:00:21]} 31. Be7 {[%clk 00:34:01]} {[%emt 00:01:00]} Rab8
{[%clk 00:12:11]} {[%emt 00:01:17]} 32. Rxa7 {[%clk 00:32:59]} {[%emt
00:01:33]} Rb2+ {[%clk 00:12:14]} {[%emt 00:00:26]} 33. Kg3 {[%clk 00:31:40]}
{[%emt 00:01:48]} Rdb8 {[%clk 00:11:46]} {[%emt 00:01:00]} 34. Rxd7 {[%emt
00:01:04]} 1-0